bitfinex/quotes_ETHUSD_20260208
["timestamp","ask_amount","ask_price","bid_price","bid_amount"]
[1770539061939,0.002,2092.2,2091.1,1.19554301]
[1770539061940,0.002,2092.2,2091.4,1.31115179]
[1770539062153,0.002,2092.2,2091.5,1.31115179]
[1770539062554,1.19646724,2093.0,2091.7,1.31115179]
[1770539062747,0.002,2093.0,2091.7,1.31115179]
[1770539062949,1.19647179,2093.0,2091.7,1.31115179]
[1770539063470,0.002,2093.0,2091.8,1.19514293]
[1770539063662,0.002,2093.0,2091.8,2.50629472]
[1770539065582,1.40344312,2092.8,2091.7,1.19516322]
[1770539065877,1.40344312,2092.8,2091.8,1.19513787]
[1770539066046,1.40344312,2092.8,2091.3,1.31115179]
[1770539066247,1.40344312,2092.8,2091.7,1.19514999]
[1770539066772,1.40344312,2092.8,2091.6,1.19525689]
[1770539067073,1.40344312,2092.8,2091.5,1.19527011]
[1770539067274,1.40344312,2092.8,2091.6,1.19522641]
[1770539067574,1.40344312,2092.6,2091.4,1.19537152]
[1770539067746,1.40344312,2092.6,2091.3,1.19538668]
[1770539067946,1.40344312,2092.6,2091.4,1.31115179]
[1770539069178,0.002,2092.0,2091.4,1.31115179]
[1770539069547,1.19468139,2092.7,2091.5,1.19531436]
[1770539069874,1.19454778,2092.9,2091.7,1.31115179]
[1770539070184,1.40344312,2092.8,2091.4,1.19532945]
[1770539070354,0.002,2092.2,2091.4,1.19532945]
[1770539070680,0.002,2092.2,2091.5,1.31115179]
[1770539071356,0.002,2092.2,2091.4,1.19532945]
[1770539071679,0.002,2092.2,2091.2,4.78148608]
[1770539072365,0.002,2092.2,2091.3,1.31115179]
[1770539073752,0.002,2092.2,2091.4,1.19537152]
[1770539073982,0.002,2092.2,2091.5,1.31115179]
[1770539075781,1.19455364,2092.9,2091.8,1.19514293]
[1770539076588,1.36964115,2092.8,2091.8,1.19514293]
[1770539076886,1.36964115,2092.8,2091.7,1.19516276]
[1770539077795,4.77655176,2093.6,2092.2,11.252613]
[1770539077977,1.36964115,2093.8,2092.3,1.59207209]
[1770539077978,2.56368149,2093.8,2092.3,1.59207209]
[1770539078156,2.56368149,2093.8,2092.6,0.04083299]
[1770539078357,0.32639851,2093.9,2092.6,0.04083299]
[1770539078691,1.1937469,2094.3,2092.9,0.04083299]
[1770539078875,1.1937469,2094.3,2093.0,17.01831]
[1770539079057,1.1937469,2094.3,2093.0,4.795354]
[1770539079268,1.19364576,2094.5,2093.2,0.04083299]
[1770539079656,6.14471055,2094.6,2093.5,0.04083299]
[1770539079657,1.37044115,2094.6,2093.5,0.04083299]
[1770539079877,2.56398813,2094.6,2093.6,1.19411539]
[1770539080190,0.0008,2094.6,2093.6,2.5763567]
[1770539081268,0.0008,2094.6,2093.7,1.38224131]
[1770539081472,1.19434742,2094.6,2093.7,1.38224131]
[1770539081785,0.0008,2094.6,2093.7,1.38224131]
[1770539081969,0.0008,2094.6,2093.8,1.19400133]
[1770539082283,0.0008,2094.6,2093.8,2.57624264]
[1770539082661,0.002,2094.3,2093.8,2.57624264]
[1770539083164,0.002,2094.5,2093.9,1.38224131]
[1770539083470,0.002,2094.5,2093.8,1.19400133]
[1770539084088,0.002,2094.5,2093.7,4.77600534]
[1770539085562,0.002,2094.5,2093.8,11.460264]
[1770539085977,0.002,2094.5,2093.7,4.77600534]
[1770539086181,0.0008,2094.6,2094.0,1.38224131]
[1770539086382,0.003,2095.0,2094.2,1.38224131]
[1770539087768,0.003,2095.0,2094.4,1.4230743]
[1770539087963,1.52123506,2095.7,2094.4,1.4230743]
[1770539088164,1.52123506,2095.7,2094.6,1.38224131]
[1770539088564,0.04089766,2096.2,2094.5,1.19360229]
[1770539088565,1.23357321,2096.2,2095.0,1.4230743]
[1770539089298,1.23354979,2096.2,2095.3,0.04083299]
[1770539089887,1.23353415,2096.2,2095.0,1.4230743]
[1770539090090,1.36964115,2096.1,2094.7,0.04083299]
[1770539090277,2.56238924,2096.0,2094.8,1.19343135]
[1770539091002,1.23357361,2096.2,2095.0,6.612096]
[1770539091173,1.23357361,2096.2,2094.8,1.19343135]
[1770539091174,1.36964115,2096.1,2094.8,1.19343135]
[1770539091772,1.23357361,2096.2,2094.9,10.50793731]
[1770539091969,1.23357361,2096.2,2094.8,1.19343135]
[1770539091970,1.36964115,2096.1,2094.8,1.19343135]
[1770539092192,1.36964115,2095.9,2094.6,1.1935453]
[1770539092593,1.19274809,2096.0,2094.7,1.4230743]
[1770539092771,1.36964115,2096.0,2094.6,1.1935453]
[1770539092966,1.19273104,2096.1,2095.0,5.421876]
[1770539093202,1.23357421,2096.2,2095.0,1.4230743]
[1770539093395,1.23357421,2096.2,2095.1,1.38224131]
[1770539093801,1.23357421,2096.2,2095.3,0.04083299]
[1770539094281,1.23357421,2096.2,2095.2,1.19320351]
[1770539094597,0.04089766,2096.2,2095.3,0.04083299]
[1770539094822,0.04089766,2096.2,2095.3,1.4230743]
[1770539095112,1.23354348,2096.2,2095.3,1.4230743]
[1770539095316,2.60318463,2096.2,2095.1,1.19325625]
[1770539096302,1.36964115,2095.9,2095.0,0.001]
[1770539096498,0.002,2095.8,2095.0,0.001]
[1770539096999,0.002,2095.8,2095.1,0.04083299]
[1770539097179,0.04089766,2096.2,2095.7,0.04083299]
[1770539097385,1.23353457,2096.2,2095.7,0.04083299]
[1770539097589,1.23354239,2096.2,2095.4,0.04083299]
[1770539098233,1.23354239,2096.2,2095.1,1.81818792]
[1770539098234,0.04089766,2096.2,2095.1,1.81818792]
[1770539098390,1.36964115,2098.3,2096.5,1.04547093]
[1770539098717,0.0354,2099.5,2098.4,1.50832855]
[1770539098882,0.04083299,2100.2,2098.7,1.50832855]
[1770539099077,6.17192543,2100.3,2098.8,0.42997589]
[1770539099381,1.36964115,2100.0,2098.9,0.42997589]
[1770539099580,1.36964115,2100.0,2099.0,0.42997589]
[1770539099782,1.36964115,2100.0,2099.1,0.42997589]
[1770539099982,10.11788349,2100.3,2099.2,0.42997589]
[1770539100199,1.19030614,2100.4,2098.5,1.45825157]
[1770539100385,0.04083299,2100.2,2098.5,1.45825157]
[1770539100600,0.04083299,2099.9,2098.6,1.45825157]
[1770539100805,0.04083299,2100.2,2098.6,1.45825157]
[1770539100985,10.26747097,2100.5,2098.6,1.45825157]
[1770539100986,0.04083299,2100.1,2098.6,1.45825157]
[1770539101181,4.91103877,2100.5,2098.6,1.45825157]
[1770539101510,10.26747097,2100.5,2098.6,1.45825157]
[1770539101713,0.14958748,2100.5,2098.8,1.45825157]
[1770539102015,0.04083299,2100.2,2098.8,1.45825157]
[1770539102224,0.10875449,2100.5,2098.8,1.45825157]
[1770539102392,0.04083299,2099.7,2098.4,1.45825157]
[1770539102588,1.19024947,2100.4,2098.5,1.19127535]
[1770539102797,1.19024947,2100.4,2098.6,1.45825157]
[1770539102798,0.14323299,2100.3,2098.6,1.45825157]
[1770539103011,0.04083299,2100.0,2098.6,1.45825157]
[1770539103417,0.04083299,2099.9,2098.3,1.70742579]
[1770539104021,5.49165756,2100.1,2098.4,1.45825157]
[1770539104416,1.19047619,2100.0,2098.5,1.45825157]
[1770539104713,1.19047619,2100.0,2098.1,1.45825157]
[1770539104714,0.04083299,2099.6,2098.1,1.45825157]
[1770539104923,0.18470121,2099.6,2097.9,1.19166144]
[1770539105099,0.04083299,2099.3,2097.9,1.45825157]
[1770539105303,0.04083299,2099.6,2098.2,1.45825157]
[1770539105508,0.04083299,2099.8,2098.2,1.45825157]
[1770539105706,0.04083299,2099.5,2098.2,1.45825157]
[1770539106123,0.21004001,2099.8,2098.2,1.45825157]
[1770539106302,1.1907597,2099.5,2098.2,1.45825157]
[1770539106501,0.04083299,2099.3,2098.2,1.45825157]
[1770539106833,1.1907597,2099.5,2098.2,1.45825157]
[1770539107442,6.58802489,2099.5,2097.8,2.64995674]
[1770539107599,1.23159269,2099.5,2097.9,1.45825157]
[1770539107802,1.23159269,2099.5,2098.0,1.19158069]
[1770539108100,0.04083299,2099.2,2097.9,1.45825157]
[1770539108418,0.04083299,2099.2,2097.3,4.76801455]
[1770539108419,0.04083299,2098.2,2097.1,8.32734853]
[1770539108607,5.3564322,2098.1,2097.1,6.57354013]
[1770539108947,5.54204679,2098.5,2096.7,1.45825157]
[1770539109113,5.54204679,2098.5,2096.9,0.04083299]
[1770539109299,5.54204679,2098.5,2096.9,1.49908456]
[1770539109506,0.18561459,2098.5,2096.9,1.49908456]
[1770539110022,0.18561459,2098.5,2096.9,1.45825157]
[1770539110222,0.22644758,2098.5,2096.3,1.1925455]
[1770539110448,1.426142,2098.3,2096.4,0.04083299]
[1770539110934,1.426142,2098.0,2096.3,0.04083299]
[1770539111318,1.426142,2098.0,2096.3,1.45041899]
[1770539112409,1.19166785,2097.9,2096.4,1.19252051]
[1770539112844,1.19166785,2097.9,2096.4,2.60210651]
[1770539113135,1.426142,2097.8,2096.0,1.409586]
[1770539113307,1.426142,2097.8,2096.0,2.6023268]
[1770539113506,1.45378349,2097.5,2096.0,1.409586]
[1770539113735,1.40378349,2097.5,2095.8,1.23365947]
[1770539113936,1.40378349,2097.5,2095.8,0.04083299]
[1770539114133,1.49461648,2097.3,2095.7,5.26108528]
[1770539114340,1.49461648,2097.3,2095.8,1.19285782]
[1770539114644,1.45378349,2097.6,2096.0,1.44383534]
[1770539115161,1.45378349,2097.3,2095.8,0.04083299]
[1770539115368,6.26216364,2097.7,2095.9,1.44383534]
[1770539115510,1.45378349,2097.6,2095.9,1.44383534]
[1770539116827,1.19189511,2097.5,2096.0,1.19274809]
[1770539117137,1.19189511,2097.5,2096.1,1.44383534]
[1770539117647,1.19189511,2097.5,2096.1,1.48466833]
[1770539118448,1.19189511,2097.5,2096.1,1.44383534]
[1770539118742,1.45378349,2097.5,2096.1,2.63649516]
[1770539119240,1.49461648,2097.5,2095.7,6.70492062]
[1770539119445,1.49461648,2097.5,2095.8,1.19282499]
[1770539119642,1.49461648,2097.5,2095.8,1.19282309]
[1770539120148,1.49461648,2097.5,2095.9,1.19280246]
[1770539120345,1.45378349,2097.5,2096.0,1.1927097]
[1770539120843,1.45378349,2097.5,2095.7,6.70492062]
[1770539120844,1.45378349,2097.3,2095.8,1.19286191]
[1770539121534,1.45378349,2097.3,2095.8,2.63669725]
[1770539122138,1.45378349,2097.3,2095.9,1.44383534]
[1770539122347,1.19195194,2097.4,2096.1,1.44383534]
[1770539122947,4.76758045,2097.6,2096.2,1.19263429]
[1770539123147,4.76758045,2097.6,2096.2,2.63646963]
[1770539124328,4.71758045,2097.6,2096.2,2.63646963]
[1770539125427,4.71758045,2097.6,2096.3,1.44383534]
[1770539126319,1.49461648,2097.5,2096.0,0.001]
[1770539126623,1.45378349,2097.1,2096.0,0.001]
[1770539127348,2.6460765,2096.8,2096.0,0.001]
[1770539127652,1.45378349,2096.7,2096.0,0.001]
[1770539128241,1.45378349,2096.7,2095.3,1.19314612]
[1770539128639,1.45378349,2096.6,2095.3,1.19312494]
[1770539128839,1.45378349,2096.6,2095.2,1.19316534]
[1770539129141,1.45378349,2096.6,2095.1,1.44383534]
[1770539129350,2.646304,2096.4,2095.1,1.44383534]
[1770539129645,2.646304,2096.4,2095.0,0.001]
[1770539129848,2.646304,2096.4,2095.0,1.19428985]
[1770539130053,2.646304,2096.4,2095.2,1.44383534]
[1770539130054,1.19252051,2096.4,2095.2,1.44383534]
[1770539130450,1.19252051,2096.4,2095.0,0.001]
[1770539130451,2.646304,2096.4,2095.0,0.001]
[1770539130631,2.646304,2096.4,2095.0,1.19430397]
[1770539130832,2.646304,2096.4,2095.0,0.001]
[1770539131253,1.49461648,2096.3,2095.0,0.001]
[1770539131455,1.19263429,2096.2,2095.0,1.44483534]
[1770539133055,1.19229301,2096.8,2095.3,1.48466833]
[1770539133627,1.19229301,2096.8,2095.2,1.19317279]
[1770539133628,1.45378349,2096.7,2095.2,1.19317279]
[1770539133948,1.45378349,2096.7,2095.3,1.19310613]
[1770539135044,1.45378349,2096.7,2095.2,1.19314766]
[1770539135252,1.45378349,2096.7,2095.3,1.1931413]
[1770539135453,1.45378349,2096.7,2095.2,1.19420225]
[1770539135655,2.64619024,2096.6,2095.2,1.19420225]
[1770539135954,2.64619024,2096.6,2095.2,2.85419344]
[1770539136930,1.63436949,2096.5,2095.2,1.66099119]
[1770539137243,6.60199719,2096.5,2095.2,0.001]
[1770539137430,6.5611642,2096.5,2095.2,0.001]
[1770539137629,1.19252051,2096.4,2095.2,0.001]
[1770539138264,2.82689,2096.4,2095.2,0.001]
[1770539138756,1.19252051,2096.4,2095.2,1.66099119]
[1770539139760,1.19234988,2096.7,2095.3,1.19314656]
[1770539140064,1.19234988,2096.7,2095.4,1.65999119]
[1770539141765,1.19234988,2096.7,2095.6,1.65999119]
[1770539143840,6.44545996,2097.3,2095.8,1.65999119]
[1770539143841,1.19206561,2097.2,2095.8,1.65999119]
[1770539144067,2.8264351,2097.2,2095.8,1.65999119]
[1770539144269,1.63436949,2097.1,2095.8,1.65999119]
[1770539144769,1.63436949,2097.0,2095.8,1.65999119]
[1770539145964,1.19223615,2096.9,2095.8,1.65999119]
[1770539146545,1.19206561,2097.2,2096.2,1.65999119]
[1770539148171,0.002,2097.3,2096.3,1.19257739]
[1770539148470,0.002,2097.3,2096.4,1.65999119]
[1770539148775,0.002,2097.0,2096.4,1.65999119]
[1770539149493,0.002,2097.3,2096.6,1.65999119]
[1770539150286,0.002,2097.3,2096.8,1.65999119]
[1770539150644,0.002,2097.3,2096.2,1.65999119]
[1770539151269,0.002,2097.3,2096.7,1.65999119]
[1770539152275,0.4075201,2097.2,2096.7,2.85233153]
[1770539152444,1.19401186,2097.3,2096.7,1.65999119]
[1770539152653,0.40736678,2097.2,2096.7,2.85233645]
[1770539152860,0.40736568,2097.1,2096.4,1.65999119]
[1770539153178,0.40736568,2097.0,2096.3,2.85256376]
[1770539153345,0.40736568,2096.9,2096.0,1.65999119]
[1770539153555,1.19400897,2097.3,2096.0,1.19272157]
[1770539153556,0.40736568,2096.8,2096.0,1.19272157]
[1770539153868,0.40736568,2096.7,2095.9,1.19276605]
[1770539154049,2.86921145,2097.3,2095.9,1.19276605]
[1770539154245,0.04083299,2097.0,2095.7,1.65999119]
[1770539154459,1.19212245,2097.1,2095.7,1.19290541]
[1770539154460,2.04183,2096.9,2095.7,1.19290541]
[1770539154657,0.40746051,2096.8,2095.7,1.19290541]
[1770539154949,0.40746051,2096.7,2095.7,1.19290541]
[1770539155147,0.40746051,2096.6,2095.6,1.19294874]
[1770539155347,0.40746051,2096.5,2095.8,1.65999119]
[1770539155586,0.40746051,2096.4,2095.8,1.65999119]
[1770539155879,0.4075797,2096.3,2095.8,1.65999119]
[1770539156065,1.19212245,2097.1,2095.8,1.65999119]
[1770539156248,1.19223615,2096.9,2095.9,1.192805]
[1770539156449,0.40759636,2096.8,2096.0,1.65999119]
[1770539156751,0.40759636,2096.7,2096.0,1.65999119]
[1770539156953,0.40759636,2096.6,2096.0,1.65999119]
[1770539157154,1.19124065,2098.7,2096.7,1.65999119]
[1770539157375,0.002,2098.7,2097.8,1.70082418]
[1770539157587,0.002,2098.7,2097.9,3.14107596]
[1770539157769,0.002,2098.7,2097.9,1.65999119]
[1770539158368,0.002,2098.7,2097.9,2.8516192]
[1770539158767,0.0008,2098.3,2097.9,2.8516192]
[1770539159266,0.0008,2098.3,2097.9,1.65999119]
[1770539159467,0.0028,2098.3,2097.8,1.1917228]
[1770539159861,0.0028,2098.3,2097.7,1.19173956]
[1770539160258,0.0028,2098.3,2097.8,1.19171208]
[1770539160553,0.0028,2098.3,2097.5,1.65999119]
[1770539160753,0.0028,2098.3,2097.4,1.19192877]
[1770539161162,0.0028,2098.3,2097.4,1.19192048]
[1770539161483,0.0028,2098.3,2097.2,1.19202597]
[1770539161783,0.0028,2098.3,2097.5,1.19188981]
[1770539161985,0.002,2098.2,2097.5,1.19188981]
[1770539162356,0.002,2098.2,2097.3,1.65999119]
[1770539163982,0.0008,2098.3,2097.5,1.65999119]
[1770539164482,0.0008,2098.3,2097.6,2.85182948]
[1770539164782,0.0008,2098.3,2097.7,1.65999119]
[1770539166665,0.0008,2098.3,2097.9,1.6717366]
[1770539167056,0.0008,2098.3,2097.8,1.19172466]
[1770539168988,0.0008,2098.3,2097.7,1.191773]
[1770539170487,0.0008,2098.3,2097.8,1.6717366]
[1770539170688,0.0008,2098.3,2097.9,1.19166785]
[1770539172780,0.0008,2098.3,2097.7,1.6717366]
[1770539175777,0.0008,2098.3,2097.8,1.19172466]
[1770539176291,0.0008,2098.3,2097.9,0.001]
[1770539178263,0.0008,2098.3,2097.9,1.59072591]
[1770539179284,0.002,2098.5,2097.9,1.59072591]
[1770539179574,1.19096596,2099.2,2098.0,1.58972591]
[1770539179880,4.76371951,2099.3,2098.1,1.19155426]
[1770539180843,4.76371951,2099.3,2098.1,2.78128017]
[1770539181098,6.40605631,2099.3,2098.1,2.78128017]
[1770539181298,1.6423368,2099.2,2097.9,1.1926359]
[1770539181499,4.76371951,2099.3,2097.9,1.19262361]
[1770539181500,1.6423368,2099.0,2097.9,1.19262361]
[1770539181994,1.1911001,2098.9,2097.9,0.001]
[1770539183173,1.19102213,2099.1,2097.9,1.59072591]
[1770539183996,2.83335893,2099.1,2098.0,1.19161105]
[1770539184672,1.6423368,2099.0,2098.0,1.19161105]
[1770539184995,1.6423368,2099.0,2097.9,1.19266667]
[1770539185197,1.6423368,2099.0,2097.9,0.001]
[1770539185404,1.19102213,2099.1,2098.0,1.58972591]
[1770539186106,1.19102213,2099.1,2098.0,1.1915938]
[1770539186107,1.6423368,2099.1,2098.0,1.1915938]
[1770539187501,1.6423368,2099.1,2097.9,1.19263678]
[1770539187722,1.68316979,2099.1,2097.9,1.19263678]
[1770539188172,1.19104335,2099.0,2097.9,0.001]
[1770539188373,1.6423368,2098.7,2097.9,0.001]
[1770539188601,1.6423368,2098.5,2097.9,0.001]
[1770539188904,1.6423368,2098.8,2097.9,0.001]
[1770539189469,2.05572412,2098.7,2097.9,7.354e-05]
[1770539189679,1.6423368,2098.5,2097.2,1.19203065]
[1770539189990,1.6423368,2098.2,2097.1,1.19208423]
[1770539190175,1.19161105,2098.0,2096.8,1.19229301]
[1770539190370,0.41318869,2097.9,2096.8,2.78201892]
[1770539190606,0.41318869,2097.8,2096.8,2.78201892]
[1770539190789,0.41318869,2097.7,2096.8,1.19229301]
[1770539190970,0.41318869,2097.6,2096.7,1.19232183]
[1770539191177,2.05552549,2097.5,2096.4,0.001]
[1770539191392,0.41318869,2097.4,2097.0,0.001]
[1770539191716,0.41318869,2097.3,2096.5,0.04083299]
[1770539191917,0.41318869,2097.2,2096.5,0.04083299]
[1770539192080,0.41318869,2097.1,2096.4,0.001]
[1770539192399,1.60540838,2097.0,2096.4,0.001]
[1770539192602,0.41318869,2096.9,2096.4,0.001]
[1770539192799,0.41318869,2096.8,2096.5,0.04083299]
[1770539192999,0.44494155,2096.7,2096.5,0.01818519]
[1770539193203,1.19198022,2097.4,2096.4,0.001]
[1770539194406,1.6423368,2097.4,2096.4,0.001]
[1770539196313,2.81868587,2097.3,2096.4,0.001]
[1770539196719,1.6266771,2097.2,2096.4,0.001]
[1770539198193,1.19200877,2097.3,2096.4,0.001]
[1770539198493,1.6266771,2097.8,2096.4,0.001]
[1770539198494,1.6266771,2097.6,2096.4,0.001]
[1770539199308,1.6266771,2097.4,2096.4,0.001]
[1770539200395,1.19200877,2097.3,2096.4,0.001]
[1770539203028,2.81868587,2097.3,2096.4,0.001]
[1770539203195,1.6266771,2097.2,2096.4,0.001]
[1770539204017,1.6286771,2097.2,2096.6,0.001]
[1770539204204,1.6286771,2097.2,2096.4,0.001]
[1770539204400,1.19212245,2097.1,2096.4,0.001]
[1770539204999,0.43380782,2097.0,2096.4,0.001]
[1770539205201,0.43380782,2096.9,2096.4,0.001]
[1770539205409,1.19212245,2097.1,2096.4,0.001]
[1770539205722,2.06044614,2097.0,2096.4,0.001]
[1770539205900,0.43376904,2096.9,2096.4,0.001]
[1770539206102,0.43376904,2096.8,2096.4,0.001]
[1770539206300,0.42801258,2096.7,2096.4,0.001]
[1770539206527,1.62045469,2096.6,2096.4,0.001]
[1770539206822,1.19244211,2096.6,2096.4,0.001]
[1770539209026,4.76896178,2096.9,2096.4,0.001]
[1770539209232,0.42798018,2096.8,2096.4,0.001]
[1770539209531,0.42798018,2096.7,2096.4,0.001]
[1770539209730,4.76896178,2096.9,2096.4,0.001]
[1770539210037,0.42798019,2096.8,2096.4,0.001]
[1770539210331,0.42798019,2096.7,2096.4,0.001]
[1770539210538,0.42798019,2096.6,2096.4,0.001]
[1770539210710,4.76896178,2096.9,2096.4,0.001]
[1770539210910,1.19234988,2096.7,2096.4,0.001]
[1770539211111,0.42815726,2096.6,2096.4,0.001]
[1770539212036,1.19212245,2097.1,2096.4,0.001]
[1770539213326,0.002,2097.2,2096.4,0.001]
[1770539213835,0.002,2097.2,2096.4,1.58857424]
[1770539215309,0.002,2097.2,2096.5,1.19246362]
[1770539215509,0.002,2097.2,2096.6,1.58757424]
[1770539217440,0.002,2097.2,2096.7,1.19234988]
[1770539217627,0.002,2097.2,2096.8,1.58757424]
[1770539218032,0.002,2097.2,2096.6,1.19336549]
[1770539218746,0.002,2097.2,2096.6,2.78093973]
[1770539220349,0.002,2097.2,2096.6,0.001]
[1770539220646,0.002,2097.2,2096.6,6.602e-05]
[1770539220849,0.002,2097.2,2096.4,0.001]
[1770539221620,1.6286771,2097.2,2096.4,0.001]
[1770539222171,1.19212245,2097.1,2096.4,0.001]
[1770539222326,2.81879955,2097.1,2096.4,0.001]
[1770539222844,1.6266771,2097.0,2096.4,0.001]
[1770539223963,1.19229301,2096.8,2096.4,0.001]
[1770539224257,0.41667192,2096.7,2096.4,0.001]
[1770539224447,0.41667192,2096.6,2096.4,0.001]
[1770539224650,0.41667192,2096.5,2096.4,0.001]
[1770539228278,11.2841025,2097.2,2096.4,1.55762911]
[1770539229739,11.2841025,2097.2,2096.5,1.19246362]
[1770539229940,0.002,2097.4,2096.6,0.001]
[1770539230166,0.002,2097.4,2096.7,1.55662911]
[1770539231774,0.002,2097.4,2096.8,1.19229301]
[1770539232092,0.002,2097.4,2096.9,1.55662911]
[1770539233377,0.002,2097.6,2097.1,1.55662911]
[1770539233752,0.002,2097.6,2097.2,1.19206561]
[1770539233956,0.002,2097.6,2097.2,2.83253319]
[1770539234153,0.002,2097.6,2097.2,1.64046758]
[1770539236279,0.002,2097.6,2097.3,1.19200877]
[1770539236860,0.002,2097.6,2097.3,2.83247635]
[1770539237575,0.0008,2098.6,2097.9,1.64046758]
[1770539237773,0.0008,2098.4,2097.9,1.64046758]
[1770539238287,0.0008,2098.4,2098.1,1.64046758]
[1770539238581,1.19113787,2098.9,2098.1,1.64046758]
[1770539239461,1.19103262,2099.1,2098.1,1.64046758]
[1770539239677,1.19081642,2099.4,2098.1,1.68130057]
[1770539240362,1.66474258,2099.4,2098.0,1.19157942]
[1770539240681,1.66474258,2099.4,2098.0,1.19156946]
[1770539240896,1.66474258,2099.4,2098.1,1.19155235]
[1770539241283,1.66474258,2099.4,2097.9,4.76665525]
[1770539241476,1.66474258,2099.4,2098.1,1.19154159]
[1770539241872,1.66474258,2099.4,2098.1,2.83200917]
[1770539242289,0.002,2099.2,2098.1,2.83200917]
[1770539242773,1.66674258,2099.2,2098.1,2.83200917]
[1770539243697,1.70757557,2099.2,2097.9,1.19163729]
[1770539243899,1.70757557,2099.2,2098.0,1.19160985]
[1770539244282,1.19098661,2099.1,2098.1,1.64046758]
[1770539244793,1.66474258,2099.0,2097.9,1.19162747]
[1770539245099,1.66474258,2099.0,2098.0,1.19160904]
[1770539245574,1.19098661,2099.1,2098.1,1.64046758]
[1770539246596,4.76594645,2099.2,2098.2,2.83196505]
[1770539247167,1.19292987,2099.2,2098.3,1.64046758]
[1770539248470,1.19292987,2099.2,2098.5,1.64046758]
[1770539248471,0.002,2099.2,2098.5,1.64046758]
[1770539250612,0.002,2099.2,2098.6,1.19127037]
[1770539250970,0.002,2099.2,2098.5,1.64046758]
[1770539251175,0.002,2099.2,2098.5,2.8317915]
[1770539251698,0.002,2099.2,2098.5,1.19132392]
[1770539251884,0.002,2099.2,2098.5,1.19132456]
[1770539252686,0.002,2099.2,2098.4,1.19138391]
[1770539253385,0.002,2099.2,2098.3,1.19139612]
[1770539254277,0.002,2099.2,2098.3,1.19239612]
[1770539254477,0.002,2099.2,2098.4,1.64046758]
[1770539254704,0.002,2099.2,2098.5,1.19132713]
[1770539255006,0.002,2099.2,2098.6,1.64046758]
[1770539256019,0.002,2099.2,2098.5,1.19132713]
[1770539256399,0.002,2099.2,2098.5,2.919141]
[1770539256941,0.002,2099.2,2098.6,1.72781387]
[1770539257509,0.002,2099.2,2098.5,1.19132713]
[1770539259000,0.002,2099.2,2098.5,1.72781387]
[1770539259202,0.002,2099.2,2098.7,1.72781387]
[1770539260714,1.19053288,2099.9,2098.7,1.72781387]
[1770539261226,4.76192336,2100.0,2098.7,1.72781387]
[1770539261227,4.76213153,2100.1,2098.9,1.72781387]
[1770539262513,6.38895796,2100.1,2098.9,1.72781387]
[1770539262705,1.62682643,2100.0,2098.8,1.19115685]
[1770539263207,2.81735931,2099.9,2098.7,4.7646274]
[1770539263414,2.81735931,2099.9,2098.7,6.49244127]
[1770539263624,2.81735931,2099.9,2098.8,1.72781387]
[1770539266209,1.62682643,2100.1,2098.9,2.91891397]
[1770539266910,0.002,2099.7,2098.9,2.91891397]
[1770539267522,0.002,2099.7,2098.8,1.19111408]
[1770539268620,0.002,2099.7,2098.8,1.72781387]
[1770539270824,0.002,2099.7,2098.9,2.91891397]
[1770539271636,0.002,2099.7,2099.0,1.72781387]
[1770539272739,0.002,2099.7,2099.0,2.91883016]
[1770539272937,0.002,2099.7,2099.1,1.72781387]
[1770539273240,0.002,2099.7,2099.0,1.19101629]
[1770539273635,0.002,2099.7,2099.0,2.91883016]
[1770539277012,0.002,2099.7,2099.1,1.72781387]
[1770539277742,0.002,2099.7,2099.1,2.91876949]
[1770539277941,0.002,2099.7,2099.2,1.72781387]
[1770539279325,0.002,2099.7,2099.1,1.19095562]
[1770539279326,0.002,2099.7,2099.1,1.19096623]
[1770539280248,0.002,2099.7,2099.1,1.19196623]
[1770539280426,0.002,2099.6,2099.1,1.19196623]
[1770539280751,0.002,2099.6,2099.1,1.56834568]
[1770539281040,1.62882643,2099.6,2098.6,1.19223479]
[1770539281469,1.62882643,2099.6,2098.6,0.001]
[1770539282046,2.81758613,2099.5,2098.6,0.001]
[1770539282925,1.1907597,2099.5,2098.6,0.001]
[1770539283123,1.62682643,2099.4,2098.6,0.001]
[1770539283726,1.1907597,2099.5,2098.6,1.72881387]
[1770539283949,2.81758613,2099.5,2098.6,0.001]
[1770539284157,1.62682643,2099.4,2098.6,0.001]
[1770539284452,4.76503881,2099.6,2098.6,1.72881387]
[1770539286663,1.60450245,2100.1,2099.1,1.56155397]
[1770539286855,1.60450245,2100.1,2098.7,1.23204659]
[1770539287164,1.60450245,2100.1,2098.8,1.56155397]
[1770539288566,1.19047619,2100.0,2098.9,1.1911001]
[1770539288778,1.19047619,2100.0,2099.0,1.56155397]
[1770539289460,1.19036282,2100.2,2099.0,1.56155397]
[1770539290768,4.76445129,2100.3,2099.0,1.56155397]
[1770539290769,4.76445129,2100.3,2099.2,1.56155397]
[1770539291269,4.76445129,2100.3,2099.4,1.56155397]
[1770539291570,1.19330614,2100.3,2099.4,1.56155397]
[1770539291877,0.003,2100.3,2099.6,1.56155397]
[1770539292251,5.24247153,2101.1,2099.8,1.60238696]
[1770539292252,0.003,2101.0,2099.8,1.60238696]
[1770539292441,1.19291122,2101.0,2100.1,1.56155397]
[1770539292872,0.003,2101.0,2100.3,1.56155397]
[1770539293044,1.60750245,2101.0,2099.8,2.75211451]
[1770539293247,1.60750245,2101.0,2100.1,1.19041319]
[1770539293248,0.003,2101.0,2100.1,1.19041319]
[1770539293440,0.03932943,2101.4,2100.5,1.56155397]
[1770539293642,1.1892245,2102.3,2100.7,1.64094446]
[1770539293974,0.1386874,2102.6,2101.3,1.64094446]
[1770539294139,0.1386874,2102.6,2101.7,1.64094446]
[1770539294339,0.04083299,2104.8,2102.5,1.64094446]
[1770539294572,0.04083299,2104.0,2101.8,0.78149736]
[1770539294784,2.80347677,2103.3,2102.0,1.64094446]
[1770539294941,0.39719829,2103.2,2102.0,1.64094446]
[1770539295268,0.39719829,2103.1,2102.0,1.64094446]
[1770539295469,1.18858723,2103.4,2102.3,1.64094446]
[1770539295869,1.18821292,2104.0,2102.4,2.510605]
[1770539296092,2.0211989,2103.9,2102.5,1.64094446]
[1770539296278,2.0211989,2103.8,2102.5,1.64094446]
[1770539296451,1.6148684,2103.6,2102.0,1.64094446]
[1770539296651,0.4063305,2103.5,2102.3,1.64094446]
[1770539296854,1.18809999,2104.2,2102.5,1.63794446]
[1770539297151,6.64486301,2104.4,2102.5,1.63794446]
[1770539297152,0.40528267,2104.1,2102.9,0.04083299]